[Event "*** Titled Tuesday Blitz"]
[Site "Chess.com"]
[Date "2021.03.16"]
[Round "4"]
[White "Rud_Makarian"]
[Black "FMJoseHerrera"]
[Result "1-0"]
[WhiteElo "2796"]
[BlackElo "2546"]
[TimeControl "180+1"]
[EndTime "10:36:18 PDT"]
[Termination "Rud_Makarian won by resignation"]

1. d4 {[%clk 0:03:00.9]} 1... Nf6 {[%clk 0:02:59.6]} 2. c4 {[%clk 0:02:58.4]}
2... c5 {[%clk 0:02:59.4]} 3. d5 {[%clk 0:02:58.5]} 3... b5 {[%clk 0:02:59.1]}
4. cxb5 {[%clk 0:02:59.4]} 4... a6 {[%clk 0:02:59.2]} 5. e3 {[%clk 0:02:59.9]}
5... axb5 {[%clk 0:02:59.2]} 6. Bxb5 {[%clk 0:03:00]} 6... Qa5+ {[%clk
0:02:58.9]} 7. Nc3 {[%clk 0:02:41.4]} 7... Bb7 {[%clk 0:02:58.1]} 8. Bd2 {[%clk
0:02:32.7]} 8... Qb6 {[%clk 0:02:57.3]} 9. a4 {[%clk 0:02:32.5]} 9... Nxd5
{[%clk 0:02:50.5]} 10. Nf3 {[%clk 0:02:32.7]} 10... Nb4 {[%clk 0:02:49.1]} 11.
O-O {[%clk 0:02:29.8]} 11... g6 {[%clk 0:02:49.4]} 12. e4 {[%clk 0:02:25.1]}
12... Bg7 {[%clk 0:02:49.2]} 13. Bg5 {[%clk 0:02:24.7]} 13... h6 {[%clk
0:02:44.9]} 14. Bh4 {[%clk 0:02:24.6]} 14... g5 {[%clk 0:02:44.5]} 15. Bg3
{[%clk 0:02:25.2]} 15... O-O {[%clk 0:02:38.1]} 16. h4 {[%clk 0:02:24.9]} 16...
g4 {[%clk 0:02:36.6]} 17. Ne5 {[%clk 0:02:25]} 17... h5 {[%clk 0:02:30.7]} 18.
Nxd7 {[%clk 0:02:20.1]} 18... Nxd7 {[%clk 0:02:24.7]} 19. Qxd7 {[%clk 0:02:21]}
19... e6 {[%clk 0:02:08.8]} 20. Qe7 {[%clk 0:02:03.4]} 20... Qd8 {[%clk
0:02:02.7]} 21. Qxb7 {[%clk 0:01:54.5]} 21... Qd2 {[%clk 0:01:54]} 22. Rab1
{[%clk 0:01:50.3]} 22... Nc2 {[%clk 0:01:40.4]} 23. Rfd1 {[%clk 0:01:40.3]}
23... Qh6 {[%clk 0:01:35.8]} 24. Qe7 {[%clk 0:01:40.1]} 24... Nd4 {[%clk
0:01:32.4]} 25. Qxc5 {[%clk 0:01:37.1]} 25... Rfd8 {[%clk 0:01:28.8]} 26. Qg5
{[%clk 0:01:34.4]} 26... Qxg5 {[%clk 0:01:21.8]} 27. hxg5 {[%clk 0:01:35.3]}
27... e5 {[%clk 0:01:18.4]} 28. Kf1 {[%clk 0:01:30.9]} 28... Kh7 {[%clk
0:01:18.4]} 29. Nd5 {[%clk 0:01:29.9]} 29... Kg6 {[%clk 0:01:18.4]} 30. Bh4
{[%clk 0:01:22.9]} 30... Rab8 {[%clk 0:01:14.4]} 31. Ne7+ {[%clk 0:01:22.5]}
31... Kh7 {[%clk 0:01:12.5]} 32. Nc6 {[%clk 0:01:22.9]} 32... Nxc6 {[%clk
0:01:12]} 33. Bxc6 {[%clk 0:01:22.7]} 33... Kg6 {[%clk 0:01:11.5]} 34. Bd7
{[%clk 0:01:22.6]} 1-0

[Event "*** Titled Tuesday Blitz"]
[Site "Chess.com"]
[Date "2021.03.16"]
[Round "4"]
[White "alejogarcia1999"]
[Black "Hangar-18"]
[Result "1-0"]
[WhiteElo "2500"]
[BlackElo "2349"]
[TimeControl "180+1"]
[EndTime "10:36:21 PDT"]
[Termination "alejogarcia1999 won by resignation"]

1. d4 {[%clk 0:03:00.9]} 1... g6 {[%clk 0:02:58.6]} 2. c4 {[%clk 0:03:00.2]}
2... Bg7 {[%clk 0:02:57.9]} 3. Nc3 {[%clk 0:02:59.8]} 3... d6 {[%clk 0:02:57.7]}
4. g3 {[%clk 0:02:59.7]} 4... Nd7 {[%clk 0:02:56.9]} 5. Bg2 {[%clk 0:02:59.9]}
5... e5 {[%clk 0:02:56.3]} 6. Nf3 {[%clk 0:02:58.5]} 6... Ne7 {[%clk 0:02:56]}
7. e4 {[%clk 0:02:58]} 7... O-O {[%clk 0:02:54.1]} 8. O-O {[%clk 0:02:57.6]}
8... exd4 {[%clk 0:02:53.2]} 9. Nxd4 {[%clk 0:02:57.2]} 9... Nc6 {[%clk
0:02:52.9]} 10. Nxc6 {[%clk 0:02:54.4]} 10... bxc6 {[%clk 0:02:51.3]} 11. Qc2
{[%clk 0:02:44.7]} 11... Nc5 {[%clk 0:02:39.4]} 12. b3 {[%clk 0:02:33.9]} 12...
Re8 {[%clk 0:02:32.1]} 13. Bb2 {[%clk 0:02:32.2]} 13... a5 {[%clk 0:02:07.4]}
14. Rad1 {[%clk 0:02:27.4]} 14... Ba6 {[%clk 0:01:40.6]} 15. Rfe1 {[%clk
0:02:26]} 15... a4 {[%clk 0:01:36.8]} 16. b4 {[%clk 0:02:05]} 16... Ne6 {[%clk
0:01:21]} 17. Nxa4 {[%clk 0:02:03.9]} 17... Bxc4 {[%clk 0:01:15.6]} 18. Bxg7
{[%clk 0:01:59.6]} 18... Kxg7 {[%clk 0:01:09.6]} 19. Qxc4 {[%clk 0:01:57.7]}
19... Rxa4 {[%clk 0:01:06.1]} 20. e5 {[%clk 0:01:57.8]} 20... c5 {[%clk
0:00:49.4]} 21. exd6 {[%clk 0:01:40.2]} 21... cxd6 {[%clk 0:00:46.4]} 22. Bc6
{[%clk 0:01:39.2]} 22... Rxb4 {[%clk 0:00:38.2]} 23. Qc3+ {[%clk 0:01:39.2]}
23... Rd4 {[%clk 0:00:29.7]} 24. Bxe8 {[%clk 0:01:39.1]} 24... Qxe8 {[%clk
0:00:28.9]} 25. Rxd4 {[%clk 0:01:39]} 25... cxd4 {[%clk 0:00:28.1]} 26. Qxd4+
{[%clk 0:01:38.5]} 1-0

[Event "*** Titled Tuesday Blitz"]
[Site "Chess.com"]
[Date "2021.03.16"]
[Round "4"]
[White "I_Enchev"]
[Black "SHIVACalypso"]
[Result "1-0"]
[WhiteElo "2537"]
[BlackElo "2358"]
[TimeControl "180+1"]
[EndTime "10:36:28 PDT"]
[Termination "I_Enchev won by resignation"]

1. Nf3 {[%clk 0:02:48.2]} 1... Nf6 {[%clk 0:02:58.1]} 2. d4 {[%clk 0:02:47.4]}
2... e6 {[%clk 0:02:58.3]} 3. c4 {[%clk 0:02:46.4]} 3... d5 {[%clk 0:02:57.2]}
4. g3 {[%clk 0:02:44.5]} 4... Be7 {[%clk 0:02:55.3]} 5. Bg2 {[%clk 0:02:44.6]}
5... O-O {[%clk 0:02:53.8]} 6. O-O {[%clk 0:02:44.6]} 6... dxc4 {[%clk
0:02:51.8]} 7. Qc2 {[%clk 0:02:44.1]} 7... a6 {[%clk 0:02:49.9]} 8. a4 {[%clk
0:02:43.6]} 8... Bd7 {[%clk 0:02:48.5]} 9. Qxc4 {[%clk 0:02:43.8]} 9... Bc6
{[%clk 0:02:48.3]} 10. Nc3 {[%clk 0:02:44]} 10... b5 {[%clk 0:02:40]} 11. Qb3
{[%clk 0:02:40.6]} 11... b4 {[%clk 0:02:37.1]} 12. Nb1 {[%clk 0:02:40]} 12... a5
{[%clk 0:02:34.3]} 13. Bg5 {[%clk 0:02:37.9]} 13... Bd5 {[%clk 0:02:30]} 14. Qc2
{[%clk 0:02:36.6]} 14... Nbd7 {[%clk 0:02:29.7]} 15. Nbd2 {[%clk 0:02:34.5]}
15... c5 {[%clk 0:02:27.6]} 16. e4 {[%clk 0:02:31.9]} 16... Bb7 {[%clk
0:02:26.8]} 17. Bxf6 {[%clk 0:02:27]} 17... Nxf6 {[%clk 0:02:22.3]} 18. e5
{[%clk 0:02:23.2]} 18... Nd5 {[%clk 0:02:19.7]} 19. dxc5 {[%clk 0:02:22.7]}
19... Rc8 {[%clk 0:02:18.4]} 20. Ne4 {[%clk 0:02:20.1]} 20... Qc7 {[%clk
0:02:06.4]} 21. Rac1 {[%clk 0:02:15.9]} 21... Rfd8 {[%clk 0:01:52.4]} 22. Rfd1
{[%clk 0:02:01]} 22... Bc6 {[%clk 0:01:22.3]} 23. Nd6 {[%clk 0:01:55.2]} 23...
Rb8 {[%clk 0:01:11]} 24. Nd4 {[%clk 0:01:51.4]} 24... b3 {[%clk 0:01:05.2]} 25.
Qe2 {[%clk 0:01:48.2]} 25... Bxa4 {[%clk 0:00:58.4]} 26. Bxd5 {[%clk 0:01:46.9]}
26... exd5 {[%clk 0:00:57.3]} 27. N4f5 {[%clk 0:01:44.7]} 27... Bf8 {[%clk
0:00:46.7]} 28. e6 {[%clk 0:01:41.7]} 28... Be8 {[%clk 0:00:41.1]} 29. e7 {[%clk
0:01:38.1]} 29... Bxe7 {[%clk 0:00:38.7]} 30. Nxe7+ {[%clk 0:01:37]} 30... Kf8
{[%clk 0:00:38.6]} 31. Nxd5 {[%clk 0:01:34.8]} 31... Bc6 {[%clk 0:00:33.5]} 32.
Nxc7 {[%clk 0:01:34]} 1-0

[Event "*** Titled Tuesday Blitz"]
[Site "Chess.com"]
[Date "2021.03.16"]
[Round "4"]
[White "QuintilianoR"]
[Black "AttackSparrow"]
[Result "1-0"]
[WhiteElo "2738"]
[BlackElo "2510"]
[TimeControl "180+1"]
[EndTime "10:36:42 PDT"]
[Termination "QuintilianoR won by resignation"]

1. d4 {[%clk 0:03:00.9]} 1... Nf6 {[%clk 0:02:53.2]} 2. c4 {[%clk 0:03:00.9]}
2... c5 {[%clk 0:02:52.1]} 3. d5 {[%clk 0:03:00.7]} 3... b5 {[%clk 0:02:49.9]}
4. cxb5 {[%clk 0:03:01.6]} 4... a6 {[%clk 0:02:50]} 5. e3 {[%clk 0:03:02.2]}
5... g6 {[%clk 0:02:49.9]} 6. Nc3 {[%clk 0:03:01.9]} 6... Bg7 {[%clk 0:02:50]}
7. Nf3 {[%clk 0:03:02.5]} 7... O-O {[%clk 0:02:50]} 8. a4 {[%clk 0:03:00.7]}
8... Bb7 {[%clk 0:02:49.9]} 9. Be2 {[%clk 0:02:57.3]} 9... e6 {[%clk 0:02:48.5]}
10. e4 {[%clk 0:02:57.6]} 10... exd5 {[%clk 0:02:48.3]} 11. exd5 {[%clk
0:02:58.5]} 11... axb5 {[%clk 0:02:48.2]} 12. Bxb5 {[%clk 0:02:59.4]} 12... Re8+
{[%clk 0:02:47.8]} 13. Be3 {[%clk 0:02:58.4]} 13... Ng4 {[%clk 0:02:32.1]} 14.
O-O {[%clk 0:02:54.2]} 14... Nxe3 {[%clk 0:02:30.7]} 15. fxe3 {[%clk 0:02:53.9]}
15... Rxe3 {[%clk 0:02:31.6]} 16. Qd2 {[%clk 0:02:52.5]} 16... Re8 {[%clk
0:02:28.8]} 17. d6 {[%clk 0:02:52.3]} 17... Nc6 {[%clk 0:02:13.3]} 18. Bc4
{[%clk 0:02:43.1]} 18... Na5 {[%clk 0:01:54.2]} 19. Bd5 {[%clk 0:02:18.6]} 19...
Bxd5 {[%clk 0:01:09.5]} 20. Qxd5 {[%clk 0:02:16.9]} 20... Qf6 {[%clk 0:01:06]}
21. Rae1 {[%clk 0:02:08.3]} 21... Rab8 {[%clk 0:01:02.9]} 22. Rxe8+ {[%clk
0:01:59.4]} 22... Rxe8 {[%clk 0:01:03.8]} 23. Qxc5 {[%clk 0:01:47.5]} 23... Nb7
{[%clk 0:01:03.3]} 24. Qc7 {[%clk 0:01:41.8]} 24... Nxd6 {[%clk 0:00:58.6]} 25.
Qxd7 {[%clk 0:01:41.9]} 25... Rd8 {[%clk 0:00:55.2]} 26. Qc6 {[%clk 0:01:40]}
26... Rc8 {[%clk 0:00:52.9]} 27. Qd5 {[%clk 0:01:37.3]} 27... Nf5 {[%clk
0:00:48.7]} 28. Re1 {[%clk 0:01:33.2]} 28... Qb6+ {[%clk 0:00:47.7]} 29. Kh1
{[%clk 0:01:26.9]} 29... Qxb2 {[%clk 0:00:47.2]} 30. Ng5 {[%clk 0:01:18.9]}
30... Qxc3 {[%clk 0:00:39.3]} 31. Qxf7+ {[%clk 0:01:18.2]} 31... Kh8 {[%clk
0:00:36]} 32. Re8+ {[%clk 0:01:19.1]} 1-0

[Event "*** Titled Tuesday Blitz"]
[Site "Chess.com"]
[Date "2021.03.16"]
[Round "4"]
[White "annacramling"]
[Black "ChrisTool2"]
[Result "0-1"]
[WhiteElo "2000"]
[BlackElo "2338"]
[TimeControl "180+1"]
[EndTime "10:36:43 PDT"]
[Termination "ChrisTool2 won by resignation"]

1. d4 {[%clk 0:03:00.9]} 1... Nf6 {[%clk 0:02:59.6]} 2. c4 {[%clk 0:03:00.8]}
2... c5 {[%clk 0:03:00.2]} 3. d5 {[%clk 0:03:00.6]} 3... b5 {[%clk 0:03:00.8]}
4. cxb5 {[%clk 0:03:00.9]} 4... a6 {[%clk 0:03:01.2]} 5. Nc3 {[%clk 0:03:00.6]}
5... d6 {[%clk 0:03:00.8]} 6. e4 {[%clk 0:02:59.9]} 6... g6 {[%clk 0:03:01]} 7.
Bd2 {[%clk 0:02:49]} 7... Bg7 {[%clk 0:03:01.2]} 8. a4 {[%clk 0:02:44.5]} 8...
O-O {[%clk 0:03:01.3]} 9. Nf3 {[%clk 0:02:43.4]} 9... Bg4 {[%clk 0:02:59.6]} 10.
Be2 {[%clk 0:02:41.2]} 10... Bxf3 {[%clk 0:02:59.1]} 11. Bxf3 {[%clk 0:02:42.1]}
11... Nbd7 {[%clk 0:02:58.7]} 12. O-O {[%clk 0:02:40.1]} 12... Ne5 {[%clk
0:02:58.3]} 13. Be2 {[%clk 0:02:40.2]} 13... Qc7 {[%clk 0:02:56.4]} 14. f4
{[%clk 0:02:20.7]} 14... Ned7 {[%clk 0:02:52.6]} 15. bxa6 {[%clk 0:02:18.8]}
15... c4 {[%clk 0:02:50.5]} 16. Be3 {[%clk 0:01:59.6]} 16... Rxa6 {[%clk
0:02:42.3]} 17. Nb5 {[%clk 0:01:43.3]} 17... Qb8 {[%clk 0:02:33.8]} 18. Qc2
{[%clk 0:01:29.7]} 18... Rc8 {[%clk 0:02:32.8]} 19. Bxc4 {[%clk 0:01:14.2]}
19... Ng4 {[%clk 0:02:27.1]} 20. Bd4 {[%clk 0:00:35.8]} 20... Bxd4+ {[%clk
0:02:25.6]} 21. Nxd4 {[%clk 0:00:36.7]} 21... Ne3 {[%clk 0:02:25.8]} 22. Qb3
{[%clk 0:00:23.9]} 22... Nxc4 {[%clk 0:02:18.8]} 23. Qxb8 {[%clk 0:00:22.7]}
23... Rxb8 {[%clk 0:02:16.8]} 24. Nc6 {[%clk 0:00:22.7]} 24... Rxb2 {[%clk
0:02:16.5]} 25. Nxe7+ {[%clk 0:00:18]} 25... Kg7 {[%clk 0:02:17]} 26. Rf2 {[%clk
0:00:14.2]} 26... Rb4 {[%clk 0:02:13.2]} 27. f5 {[%clk 0:00:07.6]} 27... Rbxa4
{[%clk 0:02:08.1]} 28. Raf1 {[%clk 0:00:07.4]} 28... Ne3 {[%clk 0:02:02.4]} 29.
f6+ {[%clk 0:00:06.9]} 29... Nxf6 {[%clk 0:02:00.7]} 30. Rxf6 {[%clk 0:00:04.7]}
30... Nxf1 {[%clk 0:02:01.6]} 31. Rxf1 {[%clk 0:00:04.8]} 31... Rxe4 {[%clk
0:02:01.9]} 32. Nc6 {[%clk 0:00:04.4]} 32... Ra2 {[%clk 0:01:59.7]} 33. Nd8
{[%clk 0:00:04.1]} 33... f5 {[%clk 0:01:55.7]} 34. Ne6+ {[%clk 0:00:02.1]} 34...
Kf6 {[%clk 0:01:56.3]} 35. g3 {[%clk 0:00:01]} 35... Ree2 {[%clk 0:01:56]} 36.
h4 {[%clk 0:00:01.3]} 36... Rg2+ {[%clk 0:01:55.7]} 0-1

[Event "*** Titled Tuesday Blitz"]
[Site "Chess.com"]
[Date "2021.03.16"]
[Round "4"]
[White "SilviusTiberius"]
[Black "Myshakov_Fedor"]
[Result "1-0"]
[WhiteElo "2545"]
[BlackElo "2353"]
[TimeControl "180+1"]
[EndTime "10:37:07 PDT"]
[Termination "SilviusTiberius won by checkmate"]

1. e4 {[%clk 0:03:00.9]} 1... c6 {[%clk 0:02:59.6]} 2. d4 {[%clk 0:03:00.7]}
2... d5 {[%clk 0:02:59.3]} 3. exd5 {[%clk 0:03:00.9]} 3... cxd5 {[%clk 0:02:59]}
4. Bd3 {[%clk 0:03:01.2]} 4... Nf6 {[%clk 0:02:58.8]} 5. c3 {[%clk 0:03:00.8]}
5... Nc6 {[%clk 0:02:59.1]} 6. Bf4 {[%clk 0:03:01]} 6... Bg4 {[%clk 0:02:58.8]}
7. Qb3 {[%clk 0:03:01.3]} 7... Qc8 {[%clk 0:02:58.2]} 8. Nd2 {[%clk 0:03:01]}
8... e6 {[%clk 0:02:57.6]} 9. Ngf3 {[%clk 0:03:01.2]} 9... Bxf3 {[%clk
0:02:57.3]} 10. Nxf3 {[%clk 0:03:01.1]} 10... Be7 {[%clk 0:02:57.5]} 11. O-O
{[%clk 0:03:00.9]} 11... O-O {[%clk 0:02:57.3]} 12. Rae1 {[%clk 0:02:56.3]}
12... Na5 {[%clk 0:02:55.7]} 13. Qd1 {[%clk 0:02:55.5]} 13... Nc4 {[%clk
0:02:55.2]} 14. Bc1 {[%clk 0:02:55.7]} 14... Nd6 {[%clk 0:02:53.9]} 15. Ne5
{[%clk 0:02:55.3]} 15... Nfe4 {[%clk 0:02:45.9]} 16. Re3 {[%clk 0:02:48.8]}
16... Bg5 {[%clk 0:02:41.1]} 17. Rh3 {[%clk 0:02:48.6]} 17... Bxc1 {[%clk
0:02:37.4]} 18. Qxc1 {[%clk 0:02:47.4]} 18... Qd8 {[%clk 0:02:33.4]} 19. f3
{[%clk 0:02:26.4]} 19... Ng5 {[%clk 0:02:25.1]} 20. Rg3 {[%clk 0:02:06.1]} 20...
f6 {[%clk 0:02:24.4]} 21. h4 {[%clk 0:01:30.4]} 21... fxe5 {[%clk 0:02:13.3]}
22. hxg5 {[%clk 0:01:30.4]} 22... e4 {[%clk 0:02:10.7]} 23. fxe4 {[%clk
0:01:25.2]} 23... dxe4 {[%clk 0:02:03.5]} 24. Bc2 {[%clk 0:01:22.6]} 24... Rxf1+
{[%clk 0:01:51.5]} 25. Qxf1 {[%clk 0:01:22.2]} 25... Nf5 {[%clk 0:01:51]} 26.
Rh3 {[%clk 0:01:18.8]} 26... Qxg5 {[%clk 0:01:49.1]} 27. Bxe4 {[%clk 0:01:19]}
27... Qe3+ {[%clk 0:01:47.3]} 28. Rxe3 {[%clk 0:01:17.7]} 28... Nxe3 {[%clk
0:01:48.1]} 29. Qf3 {[%clk 0:01:10.4]} 29... Nc4 {[%clk 0:01:47.1]} 30. Bxb7
{[%clk 0:01:02.6]} 30... Rb8 {[%clk 0:01:47.1]} 31. b3 {[%clk 0:00:58.3]} 31...
Nd6 {[%clk 0:01:42.8]} 32. Qf4 {[%clk 0:00:53.2]} 32... Rd8 {[%clk 0:01:39.4]}
33. Bf3 {[%clk 0:00:52]} 33... Nf5 {[%clk 0:01:37]} 34. d5 {[%clk 0:00:51.1]}
34... g6 {[%clk 0:01:32.7]} 35. dxe6 {[%clk 0:00:49.8]} 35... Re8 {[%clk
0:01:30.5]} 36. g4 {[%clk 0:00:42.4]} 36... Rxe6 {[%clk 0:01:29.3]} 37. Bd5
{[%clk 0:00:39.3]} 37... Ng7 {[%clk 0:01:29.1]} 38. Qf6 {[%clk 0:00:37.4]} 38...
h5 {[%clk 0:01:25.4]} 39. Qxg6 {[%clk 0:00:34.6]} 39... hxg4 {[%clk 0:01:22]}
40. Bxe6+ {[%clk 0:00:34.4]} 40... Kh8 {[%clk 0:01:22]} 41. Qh6# {[%clk
0:00:34.3]} 1-0

[Event "*** Titled Tuesday Blitz"]
[Site "Chess.com"]
[Date "2021.03.16"]
[Round "4"]
[White "JiiHart"]
[Black "SF-96"]
[Result "0-1"]
[WhiteElo "2073"]
[BlackElo "2593"]
[TimeControl "180+1"]
[EndTime "10:37:11 PDT"]
[Termination "SF-96 won on time"]

1. e4 {[%clk 0:03:00.9]} 1... e5 {[%clk 0:03:00.1]} 2. Nf3 {[%clk 0:03:00.5]}
2... Nc6 {[%clk 0:03:00.7]} 3. d4 {[%clk 0:03:00.2]} 3... exd4 {[%clk
0:03:00.9]} 4. Nxd4 {[%clk 0:03:00.6]} 4... Bc5 {[%clk 0:03:01.4]} 5. Be3 {[%clk
0:03:00.7]} 5... Qf6 {[%clk 0:03:01.6]} 6. c3 {[%clk 0:03:00.8]} 6... Nge7
{[%clk 0:03:00]} 7. g3 {[%clk 0:03:00.5]} 7... O-O {[%clk 0:02:48.9]} 8. Bg2
{[%clk 0:02:59.8]} 8... Bb6 {[%clk 0:02:44.3]} 9. O-O {[%clk 0:02:57.5]} 9...
Nxd4 {[%clk 0:02:26.9]} 10. cxd4 {[%clk 0:02:53.3]} 10... d5 {[%clk 0:02:27.2]}
11. e5 {[%clk 0:02:52.3]} 11... Qg6 {[%clk 0:02:27.7]} 12. Nc3 {[%clk
0:02:51.1]} 12... c6 {[%clk 0:02:26.5]} 13. f4 {[%clk 0:02:19.6]} 13... h5
{[%clk 0:02:26]} 14. Bf2 {[%clk 0:01:50.8]} 14... h4 {[%clk 0:02:01.8]} 15. a4
{[%clk 0:01:22.5]} 15... hxg3 {[%clk 0:01:36.6]} 16. hxg3 {[%clk 0:01:20.6]}
16... Nf5 {[%clk 0:01:37.2]} 17. a5 {[%clk 0:00:59.1]} 17... Bd8 {[%clk
0:01:37.4]} 18. Qf3 {[%clk 0:00:38.9]} 18... Nh6 {[%clk 0:01:28.2]} 19. Ne2
{[%clk 0:00:26.8]} 19... Bg4 {[%clk 0:01:27.3]} 20. Qe3 {[%clk 0:00:19.4]} 20...
Nf5 {[%clk 0:01:27.6]} 21. Qd2 {[%clk 0:00:19.2]} 21... Bxe2 {[%clk 0:01:22.8]}
22. Qxe2 {[%clk 0:00:19.3]} 22... Nxg3 {[%clk 0:01:23.6]} 23. Bxg3 {[%clk
0:00:19.7]} 23... Qxg3 {[%clk 0:01:24.5]} 24. Rf3 {[%clk 0:00:20]} 24... Qg4
{[%clk 0:01:20.5]} 25. Raf1 {[%clk 0:00:18.4]} 25... Bxa5 {[%clk 0:01:16.1]} 26.
Qe3 {[%clk 0:00:18.3]} 26... Bb6 {[%clk 0:01:14.9]} 27. f5 {[%clk 0:00:15.6]}
27... Bxd4 {[%clk 0:01:14.7]} 0-1

[Event "*** Titled Tuesday Blitz"]
[Site "Chess.com"]
[Date "2021.03.16"]
[Round "4"]
[White "Gabix_94"]
[Black "FairChess_on_YouTube"]
[Result "1/2-1/2"]
[WhiteElo "2813"]
[BlackElo "2975"]
[TimeControl "180+1"]
[EndTime "10:37:15 PDT"]
[Termination "Game drawn by repetition"]

1. Nf3 {[%clk 0:03:00.9]} 1... b6 {[%clk 0:02:56.8]} 2. g3 {[%clk 0:02:59.7]}
2... Bb7 {[%clk 0:02:56.9]} 3. Bg2 {[%clk 0:03:00.4]} 3... g6 {[%clk 0:02:57.4]}
4. O-O {[%clk 0:03:00.6]} 4... Bg7 {[%clk 0:02:58]} 5. d4 {[%clk 0:03:00.8]}
5... Nf6 {[%clk 0:02:58.2]} 6. c4 {[%clk 0:03:00.6]} 6... O-O {[%clk 0:02:58.3]}
7. d5 {[%clk 0:03:00.9]} 7... Ne4 {[%clk 0:02:54.3]} 8. Qc2 {[%clk 0:02:56.4]}
8... f5 {[%clk 0:02:52.8]} 9. Rd1 {[%clk 0:02:55.6]} 9... a5 {[%clk 0:02:49.2]}
10. Be3 {[%clk 0:02:54.5]} 10... Na6 {[%clk 0:02:31.8]} 11. Bd4 {[%clk
0:02:52.4]} 11... Bxd4 {[%clk 0:02:15.3]} 12. Nxd4 {[%clk 0:02:53.3]} 12... Nac5
{[%clk 0:02:14.3]} 13. Nc3 {[%clk 0:02:50.6]} 13... Nd6 {[%clk 0:02:14.2]} 14.
e3 {[%clk 0:02:46.4]} 14... Nxc4 {[%clk 0:02:08.2]} 15. Nc6 {[%clk 0:02:33.8]}
15... Qe8 {[%clk 0:01:28.1]} 16. Nb5 {[%clk 0:02:27.4]} 16... Nxe3 {[%clk
0:01:11.3]} 17. fxe3 {[%clk 0:02:22.5]} 17... dxc6 {[%clk 0:01:11.6]} 18. Nxc7
{[%clk 0:02:20.6]} 18... Qc8 {[%clk 0:01:11.6]} 19. Nxa8 {[%clk 0:02:18.5]}
19... Qxa8 {[%clk 0:01:12.2]} 20. Qc4 {[%clk 0:02:12.4]} 20... cxd5 {[%clk
0:00:59.9]} 21. Bxd5+ {[%clk 0:02:13.3]} 21... Bxd5 {[%clk 0:00:58.7]} 22. Rxd5
{[%clk 0:02:14.2]} 22... e6 {[%clk 0:00:55.4]} 23. Rxc5 {[%clk 0:02:05.6]} 23...
bxc5 {[%clk 0:00:54.9]} 24. Qxe6+ {[%clk 0:02:06.3]} 24... Kg7 {[%clk
0:00:35.5]} 25. Qe7+ {[%clk 0:01:56.3]} 25... Kh6 {[%clk 0:00:33.7]} 26. Qh4+
{[%clk 0:01:54.1]} 26... Kg7 {[%clk 0:00:33.8]} 27. Qe7+ {[%clk 0:01:54.7]}
27... Kh6 {[%clk 0:00:34.2]} 28. Rf1 {[%clk 0:01:27.6]} 28... Re8 {[%clk
0:00:29]} 29. Qxc5 {[%clk 0:01:23.3]} 29... Rc8 {[%clk 0:00:23]} 30. Qd4 {[%clk
0:01:21.9]} 30... Rc2 {[%clk 0:00:21.9]} 31. Qh4+ {[%clk 0:01:11.8]} 31... Kg7
{[%clk 0:00:22]} 32. Qe7+ {[%clk 0:01:12.2]} 32... Kh6 {[%clk 0:00:22]} 33. Qh4+
{[%clk 0:01:10.7]} 33... Kg7 {[%clk 0:00:22.3]} 34. Qe7+ {[%clk 0:01:04]} 34...
Kh6 {[%clk 0:00:22.5]} 35. Qh4+ {[%clk 0:01:03.4]} 1/2-1/2

[Event "*** Titled Tuesday Blitz"]
[Site "Chess.com"]
[Date "2021.03.16"]
[Round "4"]
[White "Maddie"]
[Black "northridgehawk"]
[Result "0-1"]
[WhiteElo "2065"]
[BlackElo "2349"]
[TimeControl "180+1"]
[EndTime "10:37:19 PDT"]
[Termination "northridgehawk won on time"]

1. d4 {[%clk 0:02:59.5]} 1... f5 {[%clk 0:02:52.4]} 2. c4 {[%clk 0:02:58.9]}
2... Nf6 {[%clk 0:02:47]} 3. Nc3 {[%clk 0:02:58]} 3... e6 {[%clk 0:02:46.6]} 4.
g3 {[%clk 0:02:56.9]} 4... Bb4 {[%clk 0:02:46]} 5. Bg2 {[%clk 0:02:50.9]} 5...
Bxc3+ {[%clk 0:02:44.6]} 6. bxc3 {[%clk 0:02:50.3]} 6... O-O {[%clk 0:02:45.5]}
7. Bg5 {[%clk 0:02:48]} 7... d6 {[%clk 0:02:41.4]} 8. Nf3 {[%clk 0:02:22.9]}
8... Nbd7 {[%clk 0:02:37.4]} 9. O-O {[%clk 0:02:10.1]} 9... h6 {[%clk
0:02:33.6]} 10. Bd2 {[%clk 0:01:49.4]} 10... Ne4 {[%clk 0:02:31.8]} 11. Rb1
{[%clk 0:01:43.3]} 11... Ndf6 {[%clk 0:02:30.8]} 12. Nh4 {[%clk 0:01:38.2]}
12... Qe8 {[%clk 0:02:25]} 13. e3 {[%clk 0:00:44.7]} 13... b6 {[%clk 0:02:16]}
14. Qc2 {[%clk 0:00:21.7]} 14... Bb7 {[%clk 0:02:01.4]} 15. Bc1 {[%clk
0:00:21.4]} 15... Bc6 {[%clk 0:01:58.3]} 16. Ba3 {[%clk 0:00:19.5]} 16... g5
{[%clk 0:01:52.4]} 17. Nf3 {[%clk 0:00:18.3]} 17... Qh5 {[%clk 0:01:48]} 18. Ne1
{[%clk 0:00:03]} 18... g4 {[%clk 0:01:36.2]} 19. Nd3 {[%clk 0:00:02.7]} 19...
Qf7 {[%clk 0:01:25.4]} 20. Nf4 {[%clk 0:00:02.7]} 20... Rae8 {[%clk 0:01:13.9]}
21. c5 {[%clk 0:00:02.9]} 21... e5 {[%clk 0:01:12.2]} 22. dxe5 {[%clk
0:00:02.6]} 22... dxe5 {[%clk 0:01:13.1]} 23. Nd3 {[%clk 0:00:02.6]} 23... b5
{[%clk 0:01:10]} 24. Nb4 {[%clk 0:00:01.5]} 24... Ba8 {[%clk 0:01:05.5]} 25. c6
{[%clk 0:00:01.7]} 25... Qe6 {[%clk 0:01:02.6]} 0-1

[Event "*** Titled Tuesday Blitz"]
[Site "Chess.com"]
[Date "2021.03.16"]
[Round "4"]
[White "ural58"]
[Black "kunaevchess"]
[Result "1-0"]
[WhiteElo "2545"]
[BlackElo "2355"]
[TimeControl "180+1"]
[EndTime "10:37:26 PDT"]
[Termination "ural58 won by resignation"]

1. e4 {[%clk 0:03:00.9]} 1... c5 {[%clk 0:02:59.8]} 2. b3 {[%clk 0:02:55.6]}
2... g6 {[%clk 0:02:58.2]} 3. Bb2 {[%clk 0:02:45.2]} 3... Nf6 {[%clk 0:02:58.4]}
4. e5 {[%clk 0:02:45.7]} 4... Nd5 {[%clk 0:02:58.6]} 5. Nc3 {[%clk 0:02:46.4]}
5... Nc7 {[%clk 0:02:51.7]} 6. d4 {[%clk 0:02:43.6]} 6... cxd4 {[%clk
0:02:48.9]} 7. Qxd4 {[%clk 0:02:28.5]} 7... Bg7 {[%clk 0:02:48.3]} 8. Nf3 {[%clk
0:02:26.2]} 8... Nc6 {[%clk 0:02:43.7]} 9. Qe3 {[%clk 0:02:16.3]} 9... O-O
{[%clk 0:02:28.4]} 10. O-O-O {[%clk 0:02:11.6]} 10... Ne6 {[%clk 0:02:11.2]} 11.
h4 {[%clk 0:01:11.7]} 11... Qa5 {[%clk 0:01:46.9]} 12. Rd5 {[%clk 0:01:05.5]}
12... Qc7 {[%clk 0:01:29.8]} 13. h5 {[%clk 0:01:05]} 13... Nb4 {[%clk
0:01:22.8]} 14. Rd2 {[%clk 0:00:59.1]} 14... a5 {[%clk 0:00:52.9]} 15. a3 {[%clk
0:00:56.5]} 15... Nc6 {[%clk 0:00:47.4]} 16. Nd5 {[%clk 0:00:56.7]} 16... Qd8
{[%clk 0:00:44.5]} 17. Bc4 {[%clk 0:00:55.8]} 17... a4 {[%clk 0:00:37.8]} 18. b4
{[%clk 0:00:55.7]} 18... Rb8 {[%clk 0:00:18.7]} 19. hxg6 {[%clk 0:00:53.2]}
19... fxg6 {[%clk 0:00:17.1]} 20. Ng5 {[%clk 0:00:51.1]} 20... b5 {[%clk
0:00:13.9]} 21. Ba2 {[%clk 0:00:46.1]} 21... Qe8 {[%clk 0:00:07.4]} 22. Nc7
{[%clk 0:00:43.6]} 1-0